[Event "British Rapidplay Championship 2023"]
[Site "Mercure Bradford, Bankfield Hotel"]
[Date "2023.04.16"]
[Round "9.5"]
[White "Khoury, Theo"]
[Black "Ashton, Adam G"]
[Result "1/2-1/2"]
[TimeControl "15 minutes plus 10 seconds per move"]
[WhiteElo "1772"]
[BlackElo "2390"]

1. e4 {[%clk 00:15:18]} {[%emt 00:00:01]} e5 {[%clk 00:15:17]} {[%emt
00:00:02]} 2. Nf3 {[%clk 00:15:27]} {[%emt 00:00:03]} Nc6 {[%clk 00:15:26]}
{[%emt 00:00:01]} 3. d4 {[%clk 00:15:36]} exd4 {[%clk 00:15:34]} {[%emt
00:00:02]} 4. Nxd4 {[%clk 00:15:44]} {[%emt 00:00:02]} Bc5 {[%clk 00:15:15]}
{[%emt 00:00:29]} 5. Nb3 {[%clk 00:15:53]} {[%emt 00:00:01]} Bb6 {[%clk
00:15:17]} {[%emt 00:00:08]} 6. Nc3 {[%clk 00:16:01]} {[%emt 00:00:01]} a5
{[%clk 00:14:55]} {[%emt 00:00:33]} 7. a4 {[%clk 00:16:01]} {[%emt 00:00:09]}
Nge7 {[%clk 00:14:56]} {[%emt 00:00:09]} 8. Bg5 {[%clk 00:16:05]} {[%emt
00:00:06]} f6 {[%clk 00:14:41]} {[%emt 00:00:25]} 9. Bf4 {[%clk 00:16:14]}
{[%emt 00:00:02]} d6 {[%clk 00:11:32]} {[%emt 00:03:19]} 10. Qd2 {[%clk
00:15:08]} {[%emt 00:01:15]} O-O {[%clk 00:09:27]} {[%emt 00:02:15]} 11. O-O-O
{[%clk 00:14:37]} {[%emt 00:00:41]} Ng6 {[%clk 00:07:46]} {[%emt 00:01:52]} 12.
Be3 {[%clk 00:14:37]} {[%emt 00:00:10]} Bxe3 {[%clk 00:07:46]} {[%emt
00:00:09]} 13. Qxe3 {[%clk 00:14:45]} {[%emt 00:00:02]} Be6 {[%clk 00:07:40]}
{[%emt 00:00:16]} 14. h4 {[%clk 00:14:28]} {[%emt 00:00:27]} Qe7 {[%emt
00:01:26]} 15. f4 {[%clk 00:14:07]} f5 {[%clk 00:05:26]} {[%emt 00:01:40]} 16.
h5 {[%clk 00:14:07]} {[%emt 00:00:10]} Nh8 {[%clk 00:05:16]} {[%emt 00:00:20]}
17. exf5 {[%clk 00:13:41]} {[%emt 00:00:35]} Bxb3 {[%clk 00:04:44]} {[%emt
00:00:42]} 18. Qxe7 {[%clk 00:13:49]} {[%emt 00:00:03]} Nxe7 {[%clk 00:04:53]}
{[%emt 00:00:01]} 19. cxb3 {[%clk 00:13:57]} {[%emt 00:00:03]} Nxf5 {[%clk
00:04:19]} {[%emt 00:00:43]} 20. Bc4+ {[%clk 00:13:51]} {[%emt 00:00:16]} Nf7
{[%clk 00:04:23]} {[%emt 00:00:06]} 21. Rde1 {[%clk 00:13:33]} {[%emt
00:00:27]} Rae8 {[%clk 00:04:12]} {[%emt 00:00:22]} 22. Kd2 {[%clk 00:12:45]}
{[%emt 00:00:58]} c6 {[%clk 00:03:10]} {[%emt 00:01:12]} 23. g4 {[%clk
00:12:31]} {[%emt 00:00:23]} d5 {[%clk 00:03:14]} {[%emt 00:00:07]} 24. Bxd5
{[%clk 00:11:06]} {[%emt 00:01:35]} cxd5 {[%clk 00:02:53]} {[%emt 00:00:30]} 25.
gxf5 {[%clk 00:11:14]} {[%emt 00:00:03]} Nd6 {[%clk 00:02:25]} {[%emt
00:00:38]} 26. Nxd5 {[%clk 00:10:30]} {[%emt 00:00:54]} Nxf5 {[%clk 00:02:27]}
{[%emt 00:00:07]} 27. Rxe8 {[%clk 00:09:14]} {[%emt 00:01:27]} Rxe8 {[%clk
00:02:35]} {[%emt 00:00:02]} 28. Re1 {[%clk 00:09:16]} {[%emt 00:00:07]} Rd8
{[%clk 00:01:57]} {[%emt 00:00:48]} 29. Re5 {[%clk 00:09:21]} {[%emt 00:00:05]}
Ne7 {[%clk 00:00:50]} {[%emt 00:01:17]} 30. Rxe7 {[%clk 00:09:29]} {[%emt
00:00:03]} Rxd5+ {[%clk 00:01:00]} 31. Ke3 {[%clk 00:09:00]} {[%emt 00:00:39]}
Rxh5 {[%clk 00:01:08]} {[%emt 00:00:01]} 32. Rxb7 {[%clk 00:09:08]} {[%emt
00:00:03]} Rh2 {[%clk 00:01:09]} {[%emt 00:00:09]} 33. Ra7 {[%clk 00:08:20]}
{[%emt 00:00:58]} Rxb2 {[%clk 00:01:15]} {[%emt 00:00:03]} 34. Rxa5 {[%clk
00:08:29]} {[%emt 00:00:02]} Rxb3+ {[%clk 00:01:24]} {[%emt 00:00:02]} 35. Ke4
{[%clk 00:08:36]} {[%emt 00:00:03]} h5 {[%clk 00:01:21]} {[%emt 00:00:12]} 36.
Kf5 {[%clk 00:08:12]} {[%emt 00:00:34]} h4 {[%clk 00:01:17]} {[%emt 00:00:14]}
37. Kg4 {[%clk 00:07:44]} {[%emt 00:00:38]} h3 {[%clk 00:01:23]} {[%emt
00:00:04]} 38. Rh5 {[%clk 00:07:49]} {[%emt 00:00:05]} Ra3 {[%clk 00:01:31]}
{[%emt 00:00:02]} 39. Rxh3 {[%clk 00:07:57]} {[%emt 00:00:02]} Rxa4 {[%clk
00:01:39]} {[%emt 00:00:02]} 40. Rb3 {[%clk 00:08:05]} {[%emt 00:00:02]} Ra7
{[%clk 00:01:40]} {[%emt 00:00:10]} 41. f5 {[%clk 00:08:12]} {[%emt 00:00:02]}
Kf7 {[%clk 00:01:48]} {[%emt 00:00:01]} 42. Kg5 {[%clk 00:08:16]} {[%emt
00:00:07]} Rc7 {[%clk 00:01:57]} {[%emt 00:00:01]} 43. Rb6 {[%clk 00:08:21]}
{[%emt 00:00:05]} Ra7 {[%clk 00:02:04]} {[%emt 00:00:03]} 44. Rb8 {[%clk
00:08:16]} {[%emt 00:00:14]} Rc7 {[%clk 00:02:12]} {[%emt 00:00:02]} 45. Rh8
{[%clk 00:08:23]} {[%emt 00:00:04]} Ra7 {[%clk 00:02:21]} {[%emt 00:00:01]} 46.
Rh1 {[%clk 00:08:24]} {[%emt 00:00:09]} Rb7 {[%clk 00:02:30]} {[%emt 00:00:01]}
47. Rc1 {[%clk 00:08:32]} {[%emt 00:00:02]} Ra7 {[%clk 00:02:39]} {[%emt
00:00:01]} 48. Rc6 {[%clk 00:08:36]} {[%emt 00:00:06]} Rb7 {[%clk 00:02:47]}
{[%emt 00:00:02]} 49. Rg6 {[%clk 00:08:40]} {[%emt 00:00:05]} Ra7 {[%clk
00:02:55]} {[%emt 00:00:03]} 50. Rb6 {[%clk 00:08:43]} {[%emt 00:00:07]} Ke8
{[%clk 00:02:51]} {[%emt 00:00:12]} 1/2-1/2

[Event "British Rapidplay Championship 2023"]
[Site "Mercure Bradford, Bankfield Hotel"]
[Date "2023.04.16"]
[Round "9.6"]
[White "Surtees, Mike J"]
[Black "Arkell, Keith C"]
[Result "0-1"]
[TimeControl "15 minutes plus 10 seconds per move"]
[WhiteElo "2111"]
[BlackElo "2447"]

1. c3 {[%clk 00:15:18]} {[%emt 00:00:02]} c5 {[%clk 00:15:11]} {[%emt
00:00:10]} 2. f4 {[%clk 00:15:17]} {[%emt 00:00:10]} d5 {[%clk 00:15:16]}
{[%emt 00:00:06]} 3. Nf3 {[%clk 00:15:21]} {[%emt 00:00:05]} Nf6 {[%clk
00:15:21]} {[%emt 00:00:05]} 4. d3 {[%clk 00:15:25]} {[%emt 00:00:06]} Nc6
{[%clk 00:15:18]} {[%emt 00:00:14]} 5. g3 {[%clk 00:15:28]} {[%emt 00:00:07]}
d4 {[%clk 00:15:26]} {[%emt 00:00:02]} 6. c4 {[%clk 00:14:57]} {[%emt
00:00:40]} g6 {[%clk 00:14:15]} {[%emt 00:01:21]} 7. Bg2 {[%clk 00:14:59]}
{[%emt 00:00:08]} Bg7 {[%clk 00:14:24]} {[%emt 00:00:02]} 8. Na3 {[%clk
00:15:03]} {[%emt 00:00:06]} O-O {[%clk 00:14:26]} {[%emt 00:00:08]} 9. O-O
{[%clk 00:15:09]} {[%emt 00:00:04]} e5 {[%clk 00:14:32]} {[%emt 00:00:05]} 10.
fxe5 {[%clk 00:13:21]} {[%emt 00:01:56]} Ng4 {[%clk 00:14:41]} {[%emt
00:00:02]} 11. Bg5 {[%clk 00:12:00]} {[%emt 00:01:31]} Qb6 {[%clk 00:14:42]}
{[%emt 00:00:09]} 12. Qc1 {[%clk 00:11:13]} {[%emt 00:00:57]} Ncxe5 {[%clk
00:14:02]} {[%emt 00:00:50]} 13. Nxe5 {[%clk 00:10:49]} {[%emt 00:00:34]} Nxe5
{[%clk 00:13:16]} {[%emt 00:00:56]} 14. Nc2 {[%clk 00:10:36]} {[%emt 00:00:22]}
Bg4 {[%clk 00:13:08]} {[%emt 00:00:18]} 15. Rf2 {[%clk 00:10:30]} {[%emt
00:00:16]} a5 {[%clk 00:12:27]} {[%emt 00:00:53]} 16. b3 {[%clk 00:10:12]}
{[%emt 00:00:27]} Rfe8 {[%clk 00:12:23]} {[%emt 00:00:14]} 17. h3 {[%clk
00:09:29]} {[%emt 00:00:52]} Bd7 {[%clk 00:12:24]} {[%emt 00:00:09]} 18. Qd2
{[%clk 00:09:11]} {[%emt 00:00:28]} Bc6 {[%clk 00:12:32]} {[%emt 00:00:03]} 19.
Bxc6 {[%clk 00:08:54]} {[%emt 00:00:27]} Qxc6 {[%clk 00:12:41]} {[%emt
00:00:02]} 20. Raf1 {[%clk 00:08:58]} {[%emt 00:00:05]} f5 {[%clk 00:12:45]}
{[%emt 00:00:06]} 21. e3 {[%clk 00:07:10]} {[%emt 00:01:57]} dxe3 {[%clk
00:11:00]} {[%emt 00:01:55]} 22. Nxe3 {[%clk 00:06:22]} {[%emt 00:00:59]} Nf7
{[%clk 00:10:54]} {[%emt 00:00:16]} 23. Nd5 {[%clk 00:06:22]} {[%emt 00:00:09]}
Nxg5 {[%clk 00:10:50]} {[%emt 00:00:15]} 24. Qxg5 {[%clk 00:06:29]} {[%emt
00:00:02]} Bd4 {[%clk 00:10:36]} {[%emt 00:00:25]} 25. Kh2 {[%clk 00:04:04]}
{[%emt 00:02:34]} Bxf2 {[%clk 00:10:42]} {[%emt 00:00:05]} 26. Rxf2 {[%clk
00:03:59]} {[%emt 00:00:15]} Kg7 {[%clk 00:06:26]} {[%emt 00:04:26]} 27. Rxf5
{[%clk 00:02:08]} {[%emt 00:02:01]} Re2+ {[%clk 00:06:34]} {[%emt 00:00:02]} 28.
Kg1 {[%clk 00:02:16]} {[%emt 00:00:01]} Rae8 {[%clk 00:05:34]} {[%emt
00:01:11]} 29. Rf2 {[%clk 00:02:19]} {[%emt 00:00:07]} Rxf2 {[%clk 00:05:26]}
{[%emt 00:00:18]} 30. Kxf2 {[%clk 00:02:25]} {[%emt 00:00:03]} Qe6 {[%clk
00:05:19]} {[%emt 00:00:17]} 31. Nf4 {[%clk 00:00:32]} {[%emt 00:02:04]} Qe3+
{[%clk 00:04:48]} {[%emt 00:00:41]} 32. Kg2 {[%clk 00:00:30]} {[%emt 00:00:11]}
Qd2+ {[%clk 00:04:54]} {[%emt 00:00:05]} 33. Kf3 {[%clk 00:00:25]} {[%emt
00:00:14]} Qd1+ {[%clk 00:02:08]} {[%emt 00:02:57]} 34. Kg2 {[%clk 00:00:33]}
{[%emt 00:00:01]} Qd2+ {[%clk 00:01:21]} {[%emt 00:00:58]} 35. Kf3 {[%clk
00:00:36]} {[%emt 00:00:06]} Qe3+ {[%clk 00:01:30]} {[%emt 00:00:02]} 36. Kg2
{[%clk 00:00:17]} {[%emt 00:00:28]} Qe5 {[%clk 00:01:33]} {[%emt 00:00:08]} 37.
Qg4 {[%clk 00:00:17]} {[%emt 00:00:10]} Re7 {[%clk 00:01:34]} {[%emt 00:00:09]}
38. h4 {[%clk 00:00:24]} {[%emt 00:00:02]} Qb2+ {[%clk 00:01:15]} {[%emt
00:00:30]} 39. Kh3 {[%clk 00:00:29]} {[%emt 00:00:03]} Qf2 {[%clk 00:01:14]}
{[%emt 00:00:13]} 40. Qg5 {[%clk 00:00:12]} {[%emt 00:00:27]} Qf1+ {[%clk
00:00:45]} {[%emt 00:00:40]} 41. Kh2 {[%clk 00:00:18]} {[%emt 00:00:03]} Qf2+
{[%clk 00:00:53]} {[%emt 00:00:02]} 42. Kh3 {[%clk 00:00:27]} {[%emt 00:00:01]}
Qe3 {[%clk 00:00:37]} {[%emt 00:00:25]} 43. h5 {[%clk 00:00:25]} {[%emt
00:00:13]} Qe5 {[%clk 00:00:46]} {[%emt 00:00:01]} 44. h6+ {[%clk 00:00:26]}
{[%emt 00:00:09]} Kf7 {[%clk 00:00:55]} 45. Qg4 {[%clk 00:00:30]} {[%emt
00:00:06]} Qf5 {[%clk 00:00:54]} {[%emt 00:00:11]} 46. Qxf5+ {[%clk 00:00:25]}
{[%emt 00:00:14]} gxf5 {[%clk 00:01:03]} {[%emt 00:00:02]} 47. Kh4 {[%clk
00:00:29]} {[%emt 00:00:05]} Re3 {[%clk 00:01:06]} {[%emt 00:00:08]} 48. Kg5
{[%clk 00:00:22]} {[%emt 00:00:17]} Rxg3+ {[%clk 00:01:14]} {[%emt 00:00:02]}
49. Kxf5 {[%clk 00:00:31]} Rg1 {[%clk 00:01:17]} {[%emt 00:00:08]} 50. Ke5
{[%clk 00:00:33]} {[%emt 00:00:08]} Rh1 {[%clk 00:01:23]} {[%emt 00:00:03]} 51.
Kd5 {[%clk 00:00:16]} {[%emt 00:00:28]} b6 {[%clk 00:01:30]} {[%emt 00:00:03]}
52. Kc6 {[%clk 00:00:13]} {[%emt 00:00:13]} Rxh6+ {[%clk 00:01:39]} {[%emt
00:00:02]} 53. Kb5 {[%clk 00:00:22]} {[%emt 00:00:01]} Rd6 {[%clk 00:01:36]}
{[%emt 00:00:12]} 54. a3 {[%clk 00:00:00]} {[%emt 00:00:23]} 0-1

[Event "British Rapidplay Championship 2023"]
[Site "Mercure Bradford, Bankfield Hotel"]
[Date "2023.04.16"]
[Round "9.7"]
[White "Eckersley-Waites, Tom"]
[Black "Kisteneva, Liza"]
[Result "1-0"]
[TimeControl "15 minutes plus 10 seconds per move"]
[WhiteElo "2304"]
[BlackElo "2040"]

1. e4 {[%clk 00:15:18]} {[%emt 00:00:02]} c5 {[%clk 00:15:18]} {[%emt
00:00:02]} 2. Nf3 {[%clk 00:15:26]} {[%emt 00:00:02]} d6 {[%clk 00:15:26]}
{[%emt 00:00:02]} 3. Nc3 {[%clk 00:15:31]} {[%emt 00:00:05]} Nf6 {[%clk
00:15:31]} {[%emt 00:00:05]} 4. e5 {[%clk 00:15:40]} {[%emt 00:00:02]} dxe5
{[%clk 00:15:37]} {[%emt 00:00:03]} 5. Nxe5 {[%clk 00:15:49]} {[%emt 00:00:01]}
Nbd7 {[%clk 00:15:17]} {[%emt 00:00:30]} 6. d4 {[%clk 00:15:54]} {[%emt
00:00:05]} Nxe5 {[%clk 00:14:33]} {[%emt 00:00:54]} 7. dxe5 {[%clk 00:16:03]}
{[%emt 00:00:02]} Qxd1+ {[%clk 00:14:41]} {[%emt 00:00:02]} 8. Nxd1 {[%clk
00:15:54]} {[%emt 00:00:18]} Nd5 {[%clk 00:14:46]} {[%emt 00:00:05]} 9. g3
{[%clk 00:16:02]} {[%emt 00:00:02]} Bg4 {[%clk 00:14:33]} {[%emt 00:00:23]} 10.
Bg2 {[%clk 00:16:07]} {[%emt 00:00:05]} O-O-O {[%clk 00:14:02]} {[%emt
00:00:41]} 11. O-O {[%clk 00:15:37]} {[%emt 00:00:40]} h6 {[%clk 00:13:34]}
{[%emt 00:00:38]} 12. Bxd5 {[%clk 00:14:27]} {[%emt 00:01:21]} Rxd5 {[%clk
00:13:41]} {[%emt 00:00:03]} 13. Ne3 {[%clk 00:14:35]} {[%emt 00:00:01]} Bf3
{[%clk 00:13:49]} {[%emt 00:00:01]} 14. Nxd5 {[%clk 00:14:42]} {[%emt
00:00:04]} Bxd5 {[%clk 00:13:58]} {[%emt 00:00:01]} 15. f3 {[%clk 00:13:59]}
{[%emt 00:00:54]} g5 {[%clk 00:14:01]} {[%emt 00:00:06]} 16. Kf2 {[%clk
00:12:34]} {[%emt 00:01:34]} Bg7 {[%clk 00:13:04]} {[%emt 00:01:07]} 17. Re1
{[%clk 00:12:38]} {[%emt 00:00:06]} f6 {[%clk 00:12:56]} {[%emt 00:00:18]} 18.
exf6 {[%clk 00:11:39]} {[%emt 00:01:09]} Bxf6 {[%clk 00:13:05]} {[%emt
00:00:01]} 19. c3 {[%clk 00:09:57]} {[%emt 00:01:52]} h5 {[%clk 00:12:02]}
{[%emt 00:01:13]} 20. Be3 {[%clk 00:06:18]} {[%emt 00:03:49]} b6 {[%clk
00:12:00]} {[%emt 00:00:12]} 21. Rad1 {[%clk 00:06:26]} {[%emt 00:00:02]} e6
{[%clk 00:11:48]} {[%emt 00:00:22]} 22. Bd2 {[%clk 00:05:53]} {[%emt 00:00:43]}
h4 {[%clk 00:08:22]} {[%emt 00:03:37]} 23. g4 {[%clk 00:05:31]} {[%emt
00:00:31]} Rf8 {[%clk 00:08:29]} {[%emt 00:00:03]} 24. b3 {[%clk 00:05:03]}
{[%emt 00:00:39]} Bxc3 {[%clk 00:06:01]} {[%emt 00:02:38]} 25. Bxc3 {[%clk
00:02:59]} {[%emt 00:02:14]} Rxf3+ {[%clk 00:06:09]} {[%emt 00:00:02]} 26. Kg1
{[%clk 00:03:08]} {[%emt 00:00:01]} Rxc3 {[%clk 00:06:17]} {[%emt 00:00:02]} 27.
Rd2 {[%clk 00:03:18]} Kd7 {[%clk 00:03:48]} {[%emt 00:02:38]} 28. Re5 {[%clk
00:02:54]} {[%emt 00:00:34]} Rc1+ {[%clk 00:03:42]} {[%emt 00:00:17]} 29. Kf2
{[%clk 00:03:03]} {[%emt 00:00:01]} Rh1 {[%clk 00:03:49]} {[%emt 00:00:02]} 30.
Ke3 {[%clk 00:02:57]} {[%emt 00:00:17]} h3 {[%clk 00:03:16]} {[%emt 00:00:43]}
31. Rxg5 {[%clk 00:03:03]} {[%emt 00:00:03]} Ke7 {[%clk 00:03:24]} {[%emt
00:00:02]} 32. Rh5 {[%clk 00:02:21]} {[%emt 00:00:53]} Bg2 {[%clk 00:03:28]}
{[%emt 00:00:06]} 33. g5 {[%clk 00:02:18]} {[%emt 00:00:13]} Kf7 {[%clk
00:03:20]} {[%emt 00:00:18]} 34. Rh6 {[%clk 00:02:21]} {[%emt 00:00:07]} Re1+
{[%clk 00:02:45]} {[%emt 00:00:45]} 35. Kf4 {[%emt 00:00:17]} Re4+ {[%clk
00:02:45]} 36. Kg3 {[%clk 00:02:32]} {[%emt 00:00:02]} Re3+ {[%clk 00:02:52]}
{[%emt 00:00:03]} 37. Kf4 {[%clk 00:02:16]} {[%emt 00:00:26]} Re4+ {[%clk
00:02:53]} {[%emt 00:00:09]} 38. Kg3 {[%clk 00:02:25]} Re3+ {[%clk 00:03:02]}
{[%emt 00:00:01]} 39. Kf2 {[%clk 00:02:35]} Rf3+ {[%clk 00:02:35]} {[%emt
00:00:37]} 40. Ke2 {[%clk 00:02:44]} {[%emt 00:00:01]} Kg7 {[%clk 00:01:34]}
{[%emt 00:01:11]} 41. Rxe6 {[%clk 00:02:12]} {[%emt 00:00:42]} Rf7 {[%clk
00:01:40]} {[%emt 00:00:04]} 42. g6 {[%clk 00:01:54]} {[%emt 00:00:28]} Rc7
{[%clk 00:01:39]} {[%emt 00:00:10]} 43. Ke3 {[%clk 00:01:58]} {[%emt 00:00:06]}
b5 {[%clk 00:01:45]} {[%emt 00:00:05]} 44. Rc2 {[%clk 00:01:56]} {[%emt
00:00:12]} c4 {[%clk 00:01:48]} {[%emt 00:00:07]} 45. bxc4 {[%clk 00:01:33]}
{[%emt 00:00:33]} bxc4 {[%clk 00:01:57]} 46. Kd4 {[%clk 00:01:42]} {[%emt
00:00:01]} Rd7+ {[%clk 00:02:06]} {[%emt 00:00:01]} 47. Kc5 {[%clk 00:01:23]}
{[%emt 00:00:28]} Rc7+ {[%clk 00:01:49]} {[%emt 00:00:27]} 48. Kd4 {[%clk
00:01:32]} {[%emt 00:00:02]} Rd7+ {[%clk 00:01:58]} 49. Kc5 {[%clk 00:01:41]}
Rc7+ {[%clk 00:02:08]} {[%emt 00:00:02]} 50. Kb4 {[%clk 00:01:36]} {[%emt
00:00:14]} Bf1 {[%clk 00:01:37]} {[%emt 00:00:40]} 51. Rf2 {[%clk 00:01:18]}
{[%emt 00:00:28]} Bd3 {[%clk 00:01:38]} {[%emt 00:00:10]} 52. Rf7+ {[%clk
00:01:18]} {[%emt 00:00:09]} Rxf7 {[%clk 00:01:46]} {[%emt 00:00:02]} 53. gxf7
{[%clk 00:01:27]} {[%emt 00:00:01]} Kxf7 {[%clk 00:01:10]} {[%emt 00:00:46]} 54.
Ra6 {[%clk 00:01:35]} {[%emt 00:00:02]} Be2 {[%clk 00:01:09]} {[%emt 00:00:11]}
55. a4 {[%clk 00:01:41]} {[%emt 00:00:05]} c3 {[%clk 00:01:02]} {[%emt
00:00:16]} 56. Rxa7+ {[%clk 00:01:50]} {[%emt 00:00:02]} Kf6 {[%clk 00:01:11]}
{[%emt 00:00:01]} 57. Kxc3 {[%clk 00:01:58]} {[%emt 00:00:01]} Kf5 {[%clk
00:01:20]} {[%emt 00:00:02]} 58. Kd4 {[%clk 00:01:55]} {[%emt 00:00:13]} Kf4
{[%clk 00:01:11]} {[%emt 00:00:19]} 59. Rf7 {[%clk 00:02:03]} {[%emt 00:00:02]}
Kg4 {[%clk 00:01:19]} {[%emt 00:00:01]} 60. Ke3 {[%clk 00:02:11]} {[%emt
00:00:03]} 1-0

[Event "British Rapidplay Championship 2023"]
[Site "Mercure Bradford, Bankfield Hotel"]
[Date "2023.04.16"]
[Round "9.8"]
[White "Senior, Gary"]
[Black "Mosnegutu, Klauss"]
[Result "1/2-1/2"]
[TimeControl "15 minutes plus 10 seconds per move"]
[WhiteElo "1911"]
[BlackElo "2229"]

1. e4 {[%clk 00:15:19]} {[%emt 00:30:54]} c5 {[%clk 00:15:19]} {[%emt
00:00:02]} 2. Nf3 {[%clk 00:15:26]} {[%emt 00:00:02]} d6 {[%clk 00:15:28]}
{[%emt 00:00:01]} 3. Bb5+ {[%clk 00:15:34]} {[%emt 00:00:02]} Nc6 {[%clk
00:15:37]} {[%emt 00:00:01]} 4. Bxc6+ {[%clk 00:15:38]} {[%emt 00:00:06]} bxc6
{[%clk 00:15:46]} 5. e5 {[%clk 00:15:45]} {[%emt 00:00:03]} d5 {[%clk
00:15:55]} {[%emt 00:00:02]} 6. d3 {[%clk 00:15:34]} {[%emt 00:00:20]} Rb8
{[%clk 00:15:31]} {[%emt 00:00:35]} 7. O-O {[%clk 00:15:07]} {[%emt 00:00:36]}
Bg4 {[%clk 00:15:40]} {[%emt 00:00:02]} 8. h3 {[%clk 00:15:02]} {[%emt
00:00:14]} Bh5 {[%clk 00:15:48]} {[%emt 00:00:02]} 9. c4 {[%clk 00:14:01]}
{[%emt 00:01:11]} e6 {[%clk 00:15:23]} {[%emt 00:00:36]} 10. Nc3 {[%clk
00:13:28]} {[%emt 00:00:41]} Ne7 {[%clk 00:15:06]} {[%emt 00:00:28]} 11. Na4
{[%clk 00:12:23]} {[%emt 00:01:16]} Bxf3 {[%clk 00:14:57]} {[%emt 00:00:19]} 12.
Qxf3 {[%clk 00:12:05]} {[%emt 00:00:27]} Ng6 {[%clk 00:15:05]} {[%emt
00:00:02]} 13. Qe3 {[%clk 00:11:06]} {[%emt 00:01:09]} Be7 {[%clk 00:12:32]}
{[%emt 00:02:43]} 14. b3 {[%clk 00:11:10]} {[%emt 00:00:07]} dxc4 {[%clk
00:09:51]} {[%emt 00:02:51]} 15. dxc4 {[%clk 00:10:00]} {[%emt 00:01:19]} Qd4
{[%clk 00:09:54]} {[%emt 00:00:07]} 16. Bb2 {[%clk 00:10:00]} {[%emt 00:00:11]}
Qxe3 {[%clk 00:10:00]} {[%emt 00:00:04]} 17. fxe3 {[%clk 00:10:09]} O-O {[%clk
00:07:40]} {[%emt 00:02:30]} 18. Rad1 {[%clk 00:09:58]} {[%emt 00:00:20]} Rfd8
{[%clk 00:07:49]} {[%emt 00:00:02]} 19. Kf2 {[%clk 00:09:42]} {[%emt 00:00:25]}
Kf8 {[%clk 00:07:29]} {[%emt 00:00:31]} 20. Ke2 {[%clk 00:09:09]} {[%emt
00:00:43]} Ke8 {[%clk 00:07:23]} {[%emt 00:00:17]} 21. g3 {[%clk 00:08:46]}
{[%emt 00:00:31]} h6 {[%clk 00:06:35]} {[%emt 00:00:58]} 22. Rxd8+ {[%clk
00:08:36]} {[%emt 00:00:20]} Rxd8 {[%clk 00:06:44]} {[%emt 00:00:02]} 23. Rd1
{[%clk 00:08:40]} {[%emt 00:00:05]} Rxd1 {[%clk 00:06:48]} {[%emt 00:00:07]} 24.
Kxd1 {[%clk 00:08:48]} {[%emt 00:00:01]} Nf8 {[%clk 00:06:04]} {[%emt
00:00:54]} 25. Nc3 {[%clk 00:08:16]} {[%emt 00:00:42]} f5 {[%clk 00:02:46]}
{[%emt 00:03:29]} 26. exf6 {[%emt 00:00:19]} Bxf6 {[%clk 00:02:16]} {[%emt
00:00:38]} 27. Kc2 {[%clk 00:07:48]} {[%emt 00:00:32]} Bxc3 {[%clk 00:02:14]}
{[%emt 00:00:12]} 28. Bxc3 {[%clk 00:07:56]} {[%emt 00:00:02]} Kf7 {[%clk
00:02:22]} {[%emt 00:00:02]} 29. Kd3 {[%clk 00:07:47]} {[%emt 00:00:18]} Nh7
{[%clk 00:02:30]} {[%emt 00:00:02]} 30. Be5 {[%clk 00:07:38]} {[%emt 00:00:19]}
Nf6 {[%clk 00:01:55]} {[%emt 00:00:45]} 31. Bd6 {[%clk 00:07:40]} {[%emt
00:00:07]} Nd7 {[%clk 00:01:56]} {[%emt 00:00:09]} 32. a3 {[%clk 00:06:31]}
{[%emt 00:01:19]} e5 {[%clk 00:02:02]} {[%emt 00:00:05]} 33. b4 {[%clk
00:06:02]} {[%emt 00:00:39]} cxb4 {[%clk 00:02:09]} {[%emt 00:00:03]} 34. axb4
{[%clk 00:06:02]} {[%emt 00:00:09]} Ke6 {[%clk 00:02:05]} {[%emt 00:00:14]} 35.
Bc7 {[%clk 00:05:54]} {[%emt 00:00:18]} h5 {[%clk 00:01:53]} {[%emt 00:00:22]}
36. e4 {[%clk 00:04:41]} {[%emt 00:01:22]} g5 {[%emt 00:00:37]} 37. Bd8 {[%emt
00:00:03]} g4 {[%emt 00:00:01]} 38. hxg4 hxg4 39. Kc3 {[%emt 00:00:29]} Nf8
{[%emt 00:00:27]} 1/2-1/2